bitfinex/quotes_SOLUSD_20250219
["timestamp","ask_amount","ask_price","bid_price","bid_amount"]
[1739925055319,13.41184853,170.04,170.0,72.4819887]
[1739925055630,30.2380887,170.08,170.02,24.3581887]
[1739925055831,13.41184853,170.07,170.02,24.3581887]
[1739925056936,19.29194853,170.07,170.02,24.3581887]
[1739925059550,14.6949,170.13,170.06,24.3581887]
[1739925059740,30.2363887,170.12,170.06,24.3581887]
[1739925059946,30.2363887,170.12,170.01,78.3639887]
[1739925059947,25.8990887,170.07,170.01,72.4819887]
[1739925060254,37.77003723,170.06,169.99,24.3581887]
[1739925060661,13.41184853,170.06,170.04,24.3581887]
[1739925060832,24.3581887,170.07,170.01,24.3581887]
[1739925061149,13.41184853,170.04,169.99,24.3581887]
[1739925061354,37.77003723,170.02,169.97,48.1538]
[1739925061860,13.41184853,170.0,169.97,48.1538]
[1739925062033,13.41184853,170.0,169.97,0.03]
[1739925062440,24.3581887,169.98,169.97,0.03]
[1739925062638,37.77003723,169.98,169.97,0.03]
[1739925063153,46.55828987,169.98,169.97,0.03]
[1739925065038,20.0,169.9,169.89,14.00339885]
[1739925065239,39.29764853,169.9,169.89,14.00339885]
[1739925065645,5.8847,169.93,169.89,14.00339885]
[1739925065846,30.2428887,169.93,169.89,14.00339885]
[1739925066110,5.8847,169.93,169.89,14.00339885]
[1739925066376,13.41184853,169.92,169.89,14.00339885]
[1739925066881,5.8847,169.93,169.89,14.00339885]
[1739925066882,5.8833,169.97,169.91,24.3581887]
[1739925067045,39.0633887,170.01,169.94,24.3581887]
[1739925067244,8.77261982,170.0,169.97,24.3581887]
[1739925067578,5.8823,170.0,169.97,24.3581887]
[1739925067763,49.50323973,170.07,169.97,24.3581887]
[1739925067764,3.00538972,170.05,169.99,24.3581887]
[1739925067949,5.8802,170.06,170.02,24.3581887]
[1739925068571,13.41184853,170.05,170.01,24.3581887]
[1739925068745,5.8809,170.05,170.01,24.3581887]
[1739925069287,5.8809,170.05,170.02,24.3581887]
[1739925069439,5.8809,170.05,170.01,24.3581887]
[1739925070273,37.77003723,170.03,169.97,24.3581887]
[1739925070876,39.0596887,170.05,169.99,24.3581887]
[1739925071197,5.8805,170.06,170.02,24.3581887]
[1739925071375,5.8805,170.06,170.03,24.3581887]
[1739925071898,0.063,170.07,170.05,24.3581887]
[1739925072062,0.063,170.07,170.06,24.3581887]
[1739925072393,0.063,170.07,170.05,24.3581887]
[1739925072593,5.9429,170.07,170.04,24.3581887]
[1739925072895,0.063,170.07,170.03,24.3581887]
[1739925073266,0.063,170.07,170.0,6.0011]
[1739925073267,0.063,170.05,170.0,24.3581887]
[1739925073465,13.47484853,170.05,170.0,24.3581887]
[1739925074405,5.8809,170.04,170.0,24.3581887]
[1739925074766,13.47484853,170.05,170.03,24.3581887]
[1739925074767,0.063,170.05,170.03,24.3581887]
[1739925074987,0.063,170.05,170.04,24.3581887]
[1739925075578,13.41184853,170.04,169.97,48.1538]
[1739925075768,13.41184853,170.04,170.0,24.3581887]
[1739925076270,5.9436,170.05,170.01,24.3581887]
[1739925076467,0.063,170.05,170.01,24.3581887]
[1739925077478,0.063,170.05,169.98,5.8827]
[1739925077479,0.063,170.05,170.02,24.3581887]
[1739925078007,0.063,170.05,169.97,48.1538]
[1739925078008,0.063,170.05,169.99,24.3581887]
[1739925079114,13.41184853,170.04,169.99,24.3581887]
[1739925079808,37.77003723,170.04,169.98,24.3581887]
[1739925079973,13.41184853,170.04,169.99,24.3581887]
[1739925080173,13.41184853,170.04,170.01,24.3581887]
[1739925080577,13.41184853,170.04,170.0,24.3581887]
[1739925080979,5.8813,170.03,170.0,24.3581887]
[1739925081497,5.8813,170.03,169.99,24.3581887]
[1739925081690,5.8813,170.03,170.0,24.3581887]
[1739925082078,13.41184853,170.02,169.97,72.5119887]
[1739925082477,37.77003723,170.02,169.97,48.1538]
[1739925082682,37.77003723,170.0,169.97,48.1538]
[1739925082892,5.8826,169.99,169.97,48.1538]
[1739925083115,13.41184853,169.98,169.97,0.03]
[1739925083285,37.77003723,169.98,169.97,0.03]
[1739925083497,13.41184853,169.98,169.97,0.03]
[1739925083794,37.77003723,169.98,169.97,0.03]
[1739925084194,13.41184853,169.95,169.9,24.3581887]
[1739925084376,13.41184853,169.95,169.89,62.12719885]
[1739925084707,13.41184853,169.96,169.91,24.3581887]
[1739925085116,5.884,169.95,169.91,24.3581887]
[1739925085692,5.8837,169.97,169.92,24.3581887]
[1739925085891,5.8829,169.99,169.96,24.3581887]
[1739925086183,2.98869802,170.01,169.96,24.3581887]
[1739925086393,5.8824,170.0,169.96,24.3581887]
[1739925086595,13.41184853,169.99,169.91,0.03]
[1739925086815,13.41184853,169.99,169.95,24.3581887]
[1739925086988,13.41184853,169.99,169.91,48.1538]
[1739925086989,13.41184853,170.0,169.96,24.3581887]
[1739925087177,19.29414853,170.0,169.96,24.3581887]
[1739925087384,13.41184853,169.99,169.94,24.3581887]
[1739925087694,13.41184853,169.99,169.95,24.3581887]
[1739925088399,20.0,169.97,169.94,24.3581887]
[1739925089110,25.8835,169.97,169.94,24.3581887]
[1739925089608,25.8835,169.97,169.93,24.3581887]
[1739925089791,5.883,169.98,169.95,24.3581887]
[1739925089994,5.8826,170.0,169.97,24.3581887]
[1739925090194,5.8819,170.02,169.98,24.3581887]
[1739925090715,13.41184853,170.01,169.98,24.3581887]
[1739925091388,19.29384853,170.01,169.98,24.3581887]
[1739925092098,1.6199,170.03,169.99,24.3581887]
[1739925092307,5.8813,170.03,169.99,24.3581887]
[1739925092510,5.8813,170.03,170.0,24.3581887]
[1739925092712,19.29274853,170.04,170.01,24.3581887]
[1739925093618,0.063,170.05,170.02,24.3581887]
[1739925093814,0.063,170.05,170.03,24.3581887]
[1739925093993,19.35564853,170.05,170.01,48.1238]
[1739925094201,19.35564853,170.05,170.01,72.4819887]
[1739925094713,20.063,170.05,170.03,24.3581887]
[1739925095188,0.063,170.05,170.01,72.4819887]
[1739925095392,5.9436,170.05,170.01,48.1238]
[1739925095588,5.9436,170.05,170.01,72.4819887]
[1739925097521,13.41184853,170.04,170.01,48.1238]
[1739925097693,13.41184853,170.04,169.98,24.3581887]
[1739925097892,13.41184853,170.04,169.97,48.1538]
[1739925097893,13.41184853,170.02,169.97,24.3881887]
[1739925098086,37.77003723,170.02,169.97,0.03]
[1739925098319,37.77003723,170.0,169.97,0.03]
[1739925098511,20.0,169.98,169.97,0.03]
[1739925098828,33.41184853,169.98,169.97,0.03]
[1739925099694,39.29484853,169.98,169.97,0.03]
[1739925100504,13.41184853,169.97,169.91,48.1538]
[1739925100703,13.41184853,169.97,169.91,0.03]
[1739925100704,24.3581887,169.96,169.91,0.03]
[1739925101507,37.77003723,169.97,169.91,24.3881887]
[1739925101705,5.8837,169.96,169.91,24.3881887]
[1739925102031,30.2418887,169.96,169.91,0.03]
[1739925102432,5.8837,169.96,169.93,24.3581887]
[1739925102601,5.8837,169.96,169.94,24.3581887]
[1739925103226,5.8837,169.96,169.93,24.3581887]
[1739925105434,88.5831,169.98,169.95,24.3581887]
[1739925105734,20.0,169.98,169.97,24.3581887]
[1739925106632,20.0,169.97,169.94,24.3581887]
[1739925107403,13.41184853,169.98,169.95,24.3581887]
[1739925107606,13.41184853,169.98,169.93,24.3581887]
[1739925107607,5.8833,169.97,169.93,24.3581887]
[1739925108123,5.8833,169.97,169.94,24.3581887]
[1739925108936,5.8833,169.97,169.95,0.03]
[1739925110017,20.0,169.97,169.96,24.3581887]
[1739925111029,33.41184853,169.97,169.96,24.3581887]
[1739925111219,33.41184853,169.97,169.95,0.03]
[1739925111220,25.8831,169.98,169.95,0.03]
[1739925111932,13.41184853,169.97,169.95,0.03]
[1739925113833,5.8817,170.02,169.96,24.3581887]
[1739925114139,5.8817,170.02,170.0,24.3581887]
[1739925114433,5.8817,170.02,169.96,24.3581887]
[1739925114434,13.41184853,170.01,169.96,24.3581887]
[1739925114732,13.41184853,170.01,169.95,48.1538]
[1739925114902,37.77003723,170.01,169.95,48.1538]
[1739925115106,13.41184853,170.01,169.96,24.3581887]
[1739925115707,13.41184853,169.99,169.97,24.3581887]
[1739925117031,20.0,170.01,169.97,24.3581887]
[1739925117214,4.68283767,170.03,169.99,24.3581887]
[1739925117215,5.8818,170.02,169.99,24.3581887]
[1739925118117,0.063,170.03,170.01,24.3581887]
[1739925118310,0.063,170.03,170.02,24.3581887]
[1739925120233,0.063,170.03,170.0,24.3581887]
[1739925120409,20.063,170.03,169.99,72.4819887]
[1739925120612,13.41184853,170.02,169.99,72.4819887]
[1739925121222,13.41184853,170.02,170.0,24.3581887]
[1739925121425,0.063,170.03,170.01,24.3581887]
[1739925122422,0.063,170.03,170.02,24.3581887]
[1739925122825,5.9443,170.03,170.01,24.3581887]
[1739925123030,20.0,170.02,169.99,72.4819887]
[1739925123527,25.8817,170.02,169.99,72.4819887]
[1739925124038,0.063,170.03,170.01,24.3581887]
[1739925124234,0.063,170.03,170.02,24.3581887]
[1739925124727,0.063,170.03,170.02,15.31967258]
[1739925127131,0.063,170.03,170.01,15.31967258]
[1739925127322,0.063,170.03,169.99,63.44347258]
[1739925128335,25.8818,170.02,169.99,63.44347258]
[1739925128532,25.8818,170.02,169.99,48.1238]
[1739925129437,25.8818,170.02,169.96,15.31967258]
[1739925129438,13.41184853,170.01,169.96,15.31967258]
[1739925129934,13.41184853,170.01,169.97,15.31967258]
[1739925130511,5.8823,170.0,169.97,15.31967258]
[1739925130839,19.29384853,170.01,169.97,15.31967258]
[1739925131828,21.632,170.02,169.99,15.31967258]
[1739925133752,13.41184853,170.01,169.98,15.31967258]
[1739925133921,19.29414853,170.01,169.97,15.31967258]
[1739925134722,19.29414853,170.01,169.97,15.34967258]
[1739925134953,0.063,170.03,169.97,68.7455]
[1739925135256,0.063,170.05,170.02,15.31967258]
[1739925135451,0.063,170.05,170.04,15.31967258]
[1739925135616,0.063,170.07,170.06,15.31967258]
[1739925136513,0.063,170.07,170.04,15.31967258]
[1739925136713,13.41184853,170.06,170.02,48.1238]
[1739925137243,13.41184853,170.06,170.02,63.44347258]
[1739925137842,1.715,170.07,170.04,15.31967258]
[1739925137843,0.063,170.07,170.04,15.31967258]
[1739925138032,0.063,170.07,170.05,15.31967258]
[1739925138338,0.063,170.07,170.06,15.31967258]
[1739925138543,0.063,170.07,170.06,63.44347258]
[1739925138836,0.063,170.07,170.06,64.44347258]
[1739925139243,0.063,170.07,170.06,63.44347258]
[1739925139946,0.063,170.07,170.06,69.32367258]
[1739925140830,1.5425,170.15,170.06,69.32367258]
[1739925141017,1.5425,170.15,170.13,15.31967258]
[1739925141215,6.4798,170.18,170.14,15.31967258]
[1739925141448,12.3559,170.18,170.13,15.31967258]
[1739925141643,13.41184853,170.17,170.12,15.31967258]
[1739925141943,5.8768,170.16,170.13,15.31967258]
[1739925142154,19.28834853,170.17,170.13,15.31967258]
[1739925143737,13.41184853,170.17,170.13,15.31967258]
[1739925144051,5.8758,170.19,170.15,15.31967258]
[1739925144541,13.41184853,170.18,170.15,15.31967258]
[1739925144751,28.73152111,170.18,170.13,48.1238]
[1739925145337,13.41184853,170.18,170.13,63.44347258]
[1739925145749,28.73152111,170.18,170.13,48.1238]
[1739925146045,5.8764,170.17,170.13,48.1238]
[1739925146218,13.41184853,170.16,170.13,48.1238]
[1739925146424,28.73152111,170.16,170.1,15.31967258]
[1739925146627,15.31967258,170.15,170.09,15.31967258]
[1739925147159,15.31967258,170.15,170.06,54.004]
[1739925147160,1.5646,170.12,170.07,15.31967258]
[1739925147335,15.31967258,170.1,170.04,15.31967258]
[1739925148338,13.41184853,170.08,170.04,15.31967258]
[1739925148833,37.91880203,170.08,170.02,24.5369535]
[1739925150166,13.41184853,170.08,170.04,24.5069535]
[1739925150753,19.29154853,170.08,170.04,24.5069535]
[1739925151259,13.41184853,170.08,170.05,24.5069535]
[1739925152054,29.2669535,170.11,170.02,5.9115]
[1739925152055,1.5646,170.12,170.07,24.5069535]
[1739925152224,7.443,170.12,170.09,24.5069535]
[1739925152423,13.41184853,170.11,170.1,24.5069535]
[1739925152624,13.41184853,170.11,170.09,24.5069535]
[1739925152859,1.5646,170.12,170.09,24.5069535]
[1739925153152,1.5646,170.12,170.05,54.0044]
[1739925153351,1.5646,170.12,170.11,24.5069535]
[1739925153535,13.41184853,170.13,170.11,24.5069535]
[1739925154627,1.5646,170.16,170.11,24.5069535]
[1739925154975,20.0,170.14,170.11,24.5069535]
[1739925155831,19.28974853,170.13,170.09,24.5069535]
[1739925156766,24.5069535,170.12,170.06,24.5069535]
[1739925157055,13.41184853,170.11,170.06,24.5069535]
[1739925157858,5.8788,170.1,170.06,24.5069535]
[1739925159054,5.8788,170.1,170.05,24.5069535]
[1739925159358,13.41184853,170.09,170.07,0.03]
[1739925161244,5.8792,170.09,170.07,0.03]
[1739925161453,43.79800203,170.09,170.07,0.03]
[1739925161653,39.45790203,170.08,170.07,0.03]
[1739925163564,45.33740203,170.08,170.07,0.03]
[1739925164061,60.03630203,170.08,170.02,0.03]
[1739925164361,13.41184853,170.05,170.02,0.03]
[1739925165759,5.8809,170.04,170.02,0.03]
[1739925166559,13.41184853,170.03,170.02,0.03]
[1739925167434,5.8813,170.03,170.02,0.03]
[1739925168553,19.29314853,170.03,170.02,0.03]
[1739925171379,13.41184853,170.03,170.02,0.03]
[1739925171563,13.41184853,170.03,170.02,15.35454008]
[1739925173361,20.0,170.05,170.02,15.35454008]
[1739925173561,20.0,170.05,170.03,15.32454008]
[1739925173759,13.41184853,170.04,170.02,15.35454008]
[1739925173969,13.41184853,170.04,170.02,0.03]
[1739925174648,19.29274853,170.04,170.02,0.03]
[1739925175152,19.29274853,170.04,169.9,53.11]
[1739925175153,2.0,169.91,169.9,53.11]
[1739925175353,10.8035,169.74,169.73,35.83191977]
[1739925175553,2.0,169.66,169.65,0.5]
[1739925175755,20.33359956,169.66,169.65,0.5]
[1739925175977,3.90653163,169.67,169.58,15.32454008]
[1739925176274,1.0,169.62,169.58,5.904]
[1739925176472,16.32454008,169.61,169.58,5.904]
[1739925176657,15.32454008,169.59,169.58,5.904]
[1739925176971,29.73638861,169.59,169.55,5.904]
[1739925177280,16.32454008,169.58,169.55,5.904]
[1739925177473,1.0,169.58,169.55,5.904]
[1739925178186,26.45681428,169.57,169.52,15.32454008]
[1739925178653,29.9315918,169.57,169.53,24.65076184]
[1739925179378,12.20797248,169.56,169.53,24.65076184]
[1739925180274,12.20797248,169.55,169.54,24.65076184]
[1739925180470,12.20797248,169.55,169.53,24.65076184]
[1739925180781,12.20797248,169.55,169.54,24.65076184]
[1739925180976,77.10722416,169.55,169.54,24.65076184]
[1739925181197,77.10722416,169.55,169.53,24.65076184]
[1739925181982,77.10722416,169.55,169.47,80.72356969]
[1739925181983,77.10722416,169.55,169.54,24.65076184]
[1739925182280,1.0,169.65,169.54,49.30152368]
[1739925182463,1.0,169.65,169.61,24.65076184]
[1739925182671,69.88110298,169.66,169.62,24.65076184]
[1739925182879,68.88110298,169.66,169.62,24.65076184]
[1739925183080,3.42851101,169.64,169.62,24.65076184]
[1739925183580,3.42851101,169.64,169.63,24.65076184]
[1739925184372,3.42851101,169.64,169.57,20.0]
[1739925184562,3.42851101,169.64,169.61,24.65076184]
[1739925184769,14.41184853,169.63,169.5,35.4]
[1739925184959,1.0,169.61,169.57,24.65076184]
[1739925185173,1.0,169.59,169.56,24.65076184]
[1739925185378,6.8967,169.59,169.54,24.65076184]
[1739925185588,1.0,169.58,169.54,24.65076184]
[1739925186103,13.41184853,169.55,169.52,5.8]
[1739925186382,28.07927285,169.58,169.43,6.1744]
[1739925186383,3.42851101,169.58,169.48,5.9003]
[1739925186570,1.0,169.57,169.56,24.65076184]
[1739925186767,1.0,169.57,169.54,24.65076184]
[1739925187587,3.42851101,169.56,169.54,24.65076184]
[1739925187790,3.42851101,169.56,169.55,24.65076184]
[1739925190485,3.42851101,169.56,169.54,24.65076184]
[1739925190786,3.42851101,169.56,169.51,24.65076184]
[1739925190787,14.66184853,169.55,169.51,24.65076184]
[1739925190970,5.8983,169.54,169.51,24.65076184]
[1739925191175,0.25,169.53,169.51,24.65076184]
[1739925191491,0.25,169.53,169.52,24.65076184]
[1739925191693,1.0,169.53,169.52,24.65076184]
[1739925191896,1.0,169.53,169.51,24.65076184]
[1739925192074,0.25,169.52,169.51,24.65076184]
[1739925192273,0.25,169.52,169.49,24.65076184]
[1739925192474,0.25,169.52,169.51,24.65076184]
[1739925192693,0.25,169.53,169.51,24.65076184]
[1739925192992,1.0,169.54,169.52,24.40076184]
[1739925193188,2.0,169.53,169.5,24.65076184]
[1739925193868,1.0,169.52,169.49,24.65076184]
[1739925194479,1.0,169.51,169.47,72.198229]
[1739925195302,21.31114853,169.51,169.5,0.03]
[1739925196370,45.96191037,169.51,169.5,0.03]
[1739925197098,1.0,169.44,169.42,24.65076184]
[1739925197410,15.41184853,169.46,169.42,24.65076184]
[1739925197644,1.0,169.48,169.45,24.65076184]
[1739925197931,1.0,169.49,169.47,24.65076184]
[1739925198133,1.0,169.49,169.47,23.65076184]
[1739925198297,1.0,169.44,169.37,99.5241]
[1739925198499,1.0,169.44,169.4,24.65076184]
[1739925198892,1.0,169.44,169.37,99.5241]
[1739925198893,1.0,169.43,169.39,24.65076184]
[1739925199131,1.0,169.42,169.38,24.65076184]
[1739925199344,1.0,169.43,169.4,24.65076184]
[1739925199515,1.0,169.43,169.41,24.65076184]
[1739925199826,1.0,169.44,169.41,24.65076184]
[1739925200242,13.41184853,169.43,169.37,99.5242]
[1739925200532,7.9018,169.44,169.4,24.65076184]
[1739925200941,2.0,169.44,169.4,24.65076184]
[1739925201108,13.41184853,169.44,169.41,24.65076184]
[1739925201434,13.41184853,169.44,169.37,93.62]
[1739925201435,2.0,169.41,169.37,118.27076184]
[1739925201605,14.41184853,169.4,169.37,118.27076184]
[1739925201815,15.41184853,169.4,169.37,24.65076184]
[1739925202323,15.41184853,169.4,169.36,24.65076184]
[1739925202324,1.0,169.39,169.36,24.65076184]
[1739925202631,1.0,169.37,169.36,24.65076184]
[1739925202934,15.41184853,169.4,169.36,24.65076184]
[1739925203106,15.41184853,169.4,169.33,5.9356]
[1739925203107,15.41184853,169.4,169.38,24.65076184]
[1739925203306,1.0,169.43,169.39,24.65076184]
[1739925203524,1.0,169.43,169.42,24.65076184]
[1739925203717,1.0,169.42,169.41,24.65076184]
[1739925204232,1.0,169.42,169.4,24.65076184]
[1739925204611,1.0,169.43,169.41,24.65076184]
[1739925204802,21.31384853,169.44,169.41,24.65076184]
[1739925205036,15.41184853,169.43,169.4,24.65076184]
[1739925205243,1.0,169.41,169.4,24.65076184]
[1739925205405,1.0,169.44,169.4,24.65076184]
[1739925205601,1.0,169.44,169.42,24.65076184]
[1739925205945,2.0,169.51,169.43,24.65076184]
[1739925206264,2.0,169.51,169.48,24.65076184]
[1739925206540,7.8995,169.51,169.47,24.65076184]
[1739925207039,2.0,169.51,169.47,24.65076184]
[1739925207417,2.0,169.51,169.48,24.65076184]
[1739925207628,1.0,169.51,169.48,24.65076184]
[1739925208010,21.31104853,169.52,169.48,24.65076184]
[1739925208209,3.40573541,169.5,169.47,5.9007]
[1739925208411,3.40573541,169.5,169.49,24.65076184]
[1739925209043,3.40573541,169.5,169.49,30.55076184]
[1739925209432,5.79129587,169.58,169.49,45.30086184]
[1739925209745,2.36521158,169.6,169.57,24.65076184]
[1739925209914,2.36521158,169.6,169.59,24.65076184]
[1739925210118,0.41940885,169.6,169.59,24.65076184]
[1739925211022,0.41940885,169.6,169.49,20.6501]
[1739925211023,1.0,169.43,169.33,3.435735]
[1739925211229,1.0,169.54,169.4,24.68076184]
[1739925211230,1.0,169.44,169.4,24.68076184]
[1739925211436,2.0,169.44,169.4,24.68076184]
[1739925211604,1.0,169.46,169.43,24.65076184]
[1739925211809,1.0,169.46,169.45,24.65076184]
[1739925212311,1.0,169.46,169.44,24.65076184]
[1739925213054,1.0,169.46,169.43,24.65076184]
[1739925213952,1.0,169.47,169.43,24.65076184]
[1739925214163,1.0,169.46,169.44,24.65076184]
[1739925214332,1.0,169.46,169.45,24.65076184]
[1739925214652,2.0,169.49,169.45,24.65076184]
[1739925214956,1.0,169.46,169.4,12.0731]
[1739925215450,1.0,169.51,169.43,27.9375]
[1739925215961,1.0,169.51,169.5,24.65076184]
[1739925216132,1.0,169.52,169.5,24.65076184]
[1739925216456,0.49934472,169.56,169.51,24.65076184]
[1739925216457,1.0,169.53,169.51,24.65076184]
[1739925216632,1.0,169.54,169.52,24.65076184]
[1739925216828,1.0,169.55,169.52,24.65076184]
[1739925217033,0.49934472,169.56,169.54,24.65076184]
[1739925217230,2.0,169.57,169.53,24.65076184]
[1739925217450,2.0,169.57,169.5,24.65076184]
[1739925217451,1.0,169.53,169.5,24.65076184]
[1739925217755,1.0,169.51,169.49,24.65076184]
[1739925217927,1.0,169.51,169.5,24.65076184]
[1739925218130,1.0,169.52,169.5,24.65076184]
[1739925218351,1.0,169.55,169.51,24.65076184]
[1739925218556,1.0,169.55,169.54,24.65076184]
[1739925218867,1.0,169.55,169.54,40.05475164]
[1739925219150,1.0,169.58,169.54,40.05475164]
[1739925219453,1.0,169.58,169.56,40.05475164]
[1739925219641,1.0,169.57,169.56,40.05475164]
[1739925219833,1.0,169.57,169.55,40.05475164]
[1739925220155,1.47805945,169.57,169.49,19.31184853]
[1739925220353,1.47805945,169.57,169.55,40.05475164]
[1739925221141,1.0,169.58,169.56,40.05475164]
[1739925221343,1.0,169.61,169.57,40.05475164]
[1739925221542,1.0,169.6,169.58,40.05475164]
[1739925221758,1.0,169.6,169.54,5.8982]
[1739925221759,1.0,169.61,169.57,40.05475164]
[1739925222257,1.0,169.61,169.58,40.05475164]
[1739925222635,3.5104409,169.6,169.58,40.05475164]
[1739925223048,4.98836566,169.6,169.58,40.05475164]
[1739925223738,4.98836566,169.6,169.57,40.05475164]
[1739925223941,3.5104409,169.59,169.57,40.05475164]
[1739925224140,4.98836566,169.59,169.57,40.05475164]
[1739925225150,4.5104409,169.58,169.57,40.05475164]
[1739925225466,1.0,169.55,169.52,40.05475164]
[1739925226563,3.5104409,169.54,169.52,40.05475164]
[1739925227359,1.47792476,169.53,169.52,40.05475164]
[1739925227767,4.98836566,169.53,169.5,40.05475164]
[1739925227951,5.98836566,169.53,169.5,40.05475164]
[1739925229266,4.5104409,169.52,169.5,40.05475164]
[1739925229458,3.5104409,169.52,169.5,40.05475164]
[1739925229662,4.5104409,169.52,169.5,40.05475164]
[1739925229959,5.98836566,169.52,169.5,40.05475164]
[1739925230369,3.5104409,169.51,169.5,40.05475164]
[1739925230673,3.5104409,169.51,169.49,40.05475164]
[1739925231042,4.5104409,169.51,169.47,40.05475164]
[1739925231246,1.0,169.47,169.44,40.08475164]
[1739925231543,1.0,169.49,169.46,40.05475164]
[1739925231739,4.5104409,169.5,169.47,40.05475164]
[1739925231952,1.0,169.48,169.47,40.05475164]
[1739925232245,4.5104409,169.5,169.47,40.05475164]
[1739925232447,4.5104409,169.5,169.49,40.05475164]
[1739925232866,3.5104409,169.5,169.49,40.05475164]
[1739925233372,1.0,169.49,169.46,40.05475164]
[1739925233571,1.0,169.47,169.45,40.05475164]
[1739925234137,1.0,169.47,169.46,40.05475164]
[1739925234341,1.0,169.48,169.46,40.05475164]
[1739925235053,1.0,169.47,169.46,40.05475164]
[1739925235255,1.0,169.47,169.45,40.05475164]
[1739925235544,1.0,169.45,169.44,0.03]
[1739925237374,6.9014,169.45,169.44,0.03]
[1739925237677,1.0,169.45,169.44,0.03]
[1739925238080,2.47908567,169.45,169.44,0.03]
[1739925238572,1.47908567,169.45,169.44,0.03]
[1739925238793,1.47908567,169.45,169.44,24.70872853]
[1739925239373,1.47908567,169.45,169.44,0.03]
[1739925239751,1.0,169.47,169.44,0.03]
[1739925239953,1.0,169.48,169.44,0.03]
[1739925240153,2.0,169.48,169.44,0.03]
[1739925240462,1.0,169.48,169.44,30.61042853]
[1739925240668,1.0,169.48,169.45,24.67872853]
[1739925240865,1.0,169.46,169.45,24.67872853]
[1739925241070,1.0,169.46,169.44,5.9317]
[1739925241071,1.0,169.46,169.44,30.61042853]
[1739925241287,1.0,169.47,169.44,30.61042853]
[1739925241576,1.0,169.47,169.44,24.70872853]
[1739925241874,1.0,169.48,169.45,24.67872853]
[1739925243089,1.0,169.49,169.47,24.67872853]
[1739925243977,1.0,169.48,169.47,80.9]
[1739925244173,2.0,169.48,169.47,80.9]
[1739925244384,1.0,169.48,169.47,80.9]
[1739925244754,1.0,169.49,169.47,80.9]
[1739925244958,1.47894252,169.48,169.47,80.9]
[1739925245156,2.47894252,169.48,169.47,80.9]
[1739925245961,1.47894252,169.48,169.47,80.9]
[1739925246305,1.0,169.49,169.47,105.57872853]
[1739925246481,1.0,169.49,169.47,111.47922853]
[1739925246665,1.0,169.54,169.48,24.67872853]
[1739925246973,1.0,169.51,169.49,24.67872853]
[1739925247277,1.0,169.51,169.48,80.9]
[1739925248379,1.0,169.51,169.48,86.8]
[1739925249387,1.0,169.51,169.48,111.47872853]
[1739925249594,1.0,169.52,169.48,111.47872853]
[1739925250106,1.0,169.51,169.48,111.47872853]
[1739925250809,1.0,169.51,169.48,86.8003]
[1739925251112,1.0,169.52,169.48,111.47902853]
[1739925251614,1.47860207,169.5,169.48,111.47902853]
[1739925251913,1.47860207,169.5,169.49,24.67872853]
[1739925252203,1.47860207,169.5,169.49,30.57872853]
[1739925252496,1.47860207,169.5,169.48,111.47902853]
[1739925252906,1.47860207,169.5,169.49,24.67872853]
[1739925253098,1.47860207,169.51,169.49,24.67872853]
[1739925253297,1.47860207,169.51,169.5,24.67872853]
[1739925254396,1.47860207,169.51,169.49,30.57872853]
[1739925255097,1.47860207,169.51,169.49,111.47872853]
[1739925255396,1.47860207,169.51,169.49,86.8]
[1739925255580,1.47860207,169.51,169.49,111.47872853]
[1739925256397,1.0,169.52,169.49,111.47872853]
[1739925257700,1.0,169.54,169.49,111.47872853]
[1739925257895,1.0,169.52,169.49,111.47872853]
[1739925258098,3.52280065,169.51,169.49,111.47872853]
[1739925259103,1.0,169.52,169.49,111.47872853]
[1739925259688,1.0,169.52,169.49,111.50872853]
[1739925259889,1.0,169.53,169.49,111.50872853]
[1739925260099,1.0,169.55,169.51,24.67872853]
[1739925260297,1.0,169.55,169.52,24.67872853]
[1739925260690,1.0,169.55,169.52,105.57872853]
[1739925260883,0.063,169.56,169.52,105.57872853]
[1739925260884,0.063,169.56,169.54,24.67872853]
[1739925261081,0.063,169.56,169.55,24.67872853]